[Event "Early-Titled-Tuesday-Blitz-October-10-2023"]
[Site "Chess.com"]
[Date "2023.10.10"]
[Round "1"]
[White "borocotoajua"]
[Black "cristiano78"]
[Result "1-0"]
[WhiteElo "2588"]
[BlackElo "2243"]
[TimeControl "180+1"]
[EndTime "8:07:05 PDT"]
[Termination "borocotoajua won by resignation"]

1. d4 {[%clk 0:02:58.7]} 1... Nf6 {[%clk 0:02:59.5]} 2. Nf3 {[%clk 0:02:58.8]}
2... g6 {[%clk 0:02:59.4]} 3. c4 {[%clk 0:02:58.9]} 3... Bg7 {[%clk 0:02:59.7]}
4. g3 {[%clk 0:02:59.1]} 4... d6 {[%clk 0:03:00]} 5. Bg2 {[%clk 0:02:59.4]} 5...
O-O {[%clk 0:03:00.7]} 6. O-O {[%clk 0:02:59.4]} 6... Nc6 {[%clk 0:03:01.3]} 7.
Nc3 {[%clk 0:02:59]} 7... Bf5 {[%clk 0:03:01]} 8. b3 {[%clk 0:02:44.4]} 8... Qd7
{[%clk 0:02:52.7]} 9. Bb2 {[%clk 0:02:43.3]} 9... Bh3 {[%clk 0:02:51.2]} 10. d5
{[%clk 0:02:41.5]} 10... Nb4 {[%clk 0:02:50.7]} 11. Qd2 {[%clk 0:02:28.2]} 11...
Bxg2 {[%clk 0:02:49.2]} 12. Kxg2 {[%clk 0:02:29.1]} 12... a5 {[%clk 0:02:47.4]}
13. e4 {[%clk 0:02:25]} 13... Ng4 {[%clk 0:02:41]} 14. Rae1 {[%clk 0:02:15.4]}
14... e5 {[%clk 0:02:35.6]} 15. dxe6 {[%clk 0:01:44.1]} 15... fxe6 {[%clk
0:02:34.6]} 16. h3 {[%clk 0:01:37.9]} 16... Rxf3 {[%clk 0:02:07.6]} 17. Kxf3
{[%clk 0:01:35.1]} 17... Nh2+ {[%clk 0:02:05.4]} 18. Kg2 {[%clk 0:01:34.2]}
18... Nxf1 {[%clk 0:02:03.8]} 19. Rxf1 {[%clk 0:01:35.1]} 19... Rf8 {[%clk
0:01:57]} 20. f4 {[%clk 0:01:34.8]} 20... Na6 {[%clk 0:01:50.1]} 21. Re1 {[%clk
0:01:20.8]} 21... Nc5 {[%clk 0:01:46.1]} 22. Qe2 {[%clk 0:01:02.6]} 22... Qc6
{[%clk 0:01:40]} 23. Kh2 {[%clk 0:01:01.9]} 23... h5 {[%clk 0:01:35.4]} 24. Rf1
{[%clk 0:00:52.2]} 24... Kh7 {[%clk 0:01:17.9]} 25. f5 {[%clk 0:00:51.9]} 25...
exf5 {[%clk 0:01:14.8]} 26. exf5 {[%clk 0:00:51.5]} 26... Qe8 {[%clk 0:00:58.8]}
27. fxg6+ {[%clk 0:00:34.4]} 27... Qxg6 {[%clk 0:00:55.9]} 28. Rxf8 {[%clk
0:00:35.3]} 28... Bxf8 {[%clk 0:00:55.8]} 29. Nd5 {[%clk 0:00:35.4]} 29... Ne4
{[%clk 0:00:39.2]} 30. Qxe4 {[%clk 0:00:34.3]} 30... Qxe4 {[%clk 0:00:31]} 31.
Nf6+ {[%clk 0:00:34.5]} 31... Kg6 {[%clk 0:00:31.8]} 32. Nxe4 {[%clk 0:00:35.4]}
32... Kf5 {[%clk 0:00:31.7]} 33. Nc3 {[%clk 0:00:34.3]} 33... Bg7 {[%clk
0:00:29.9]} 34. Nd1 {[%clk 0:00:34.5]} 34... Bh6 {[%clk 0:00:26]} 35. Bc3 {[%clk
0:00:30.8]} 35... b6 {[%clk 0:00:25.1]} 36. Nf2 {[%clk 0:00:28.7]} 36... Be3
{[%clk 0:00:24.1]} 37. Kg2 {[%clk 0:00:28.9]} 37... c6 {[%clk 0:00:21.9]} 38.
Kf3 {[%clk 0:00:28.8]} 38... Bc5 {[%clk 0:00:21.7]} 39. g4+ {[%clk 0:00:29.2]}
39... hxg4+ {[%clk 0:00:21.7]} 40. hxg4+ {[%clk 0:00:30.1]} 40... Kg6 {[%clk
0:00:21]} 41. Ne4 {[%clk 0:00:31]} 41... Kf7 {[%clk 0:00:19.7]} 42. Nxc5 {[%clk
0:00:31.1]} 42... dxc5 {[%clk 0:00:19.3]} 43. Be5 {[%clk 0:00:31.1]} 1-0

[Event "Early-Titled-Tuesday-Blitz-October-10-2023"]
[Site "Chess.com"]
[Date "2023.10.10"]
[Round "1"]
[White "SAInt_666"]
[Black "ViktoriyaTarasova"]
[Result "1-0"]
[WhiteElo "2654"]
[BlackElo "2369"]
[TimeControl "180+1"]
[EndTime "8:07:08 PDT"]
[Termination "SAInt_666 won on time"]

1. e4 {[%clk 0:03:00.9]} 1... e5 {[%clk 0:02:59.6]} 2. Nf3 {[%clk 0:03:00.6]}
2... Nc6 {[%clk 0:03:00]} 3. Bc4 {[%clk 0:03:01.3]} 3... Bc5 {[%clk 0:02:59.5]}
4. c3 {[%clk 0:03:01.7]} 4... Nf6 {[%clk 0:02:58.2]} 5. d3 {[%clk 0:03:02.1]}
5... d6 {[%clk 0:02:55.9]} 6. O-O {[%clk 0:03:01.4]} 6... a5 {[%clk 0:02:53.2]}
7. Nbd2 {[%clk 0:03:00.6]} 7... h6 {[%clk 0:02:52.9]} 8. Re1 {[%clk 0:03:00.6]}
8... O-O {[%clk 0:02:52.2]} 9. h3 {[%clk 0:03:00.3]} 9... Be6 {[%clk 0:02:51.4]}
10. Bb5 {[%clk 0:02:59.2]} 10... Ba7 {[%clk 0:02:41.6]} 11. Nf1 {[%clk
0:02:57.6]} 11... Ne7 {[%clk 0:02:40.3]} 12. Ng3 {[%clk 0:02:57]} 12... c6
{[%clk 0:02:40.1]} 13. Ba4 {[%clk 0:02:57.4]} 13... b5 {[%clk 0:02:39.7]} 14.
Bc2 {[%clk 0:02:57.6]} 14... Ng6 {[%clk 0:02:32.4]} 15. d4 {[%clk 0:02:57.9]}
15... Qc7 {[%clk 0:02:23.4]} 16. Be3 {[%clk 0:02:57.5]} 16... b4 {[%clk
0:02:18.6]} 17. Qd2 {[%clk 0:02:56.8]} 17... Kh7 {[%clk 0:02:09.3]} 18. Nf5
{[%clk 0:02:55.4]} 18... bxc3 {[%clk 0:02:06.7]} 19. bxc3 {[%clk 0:02:54.1]}
19... Ng8 {[%clk 0:02:07.1]} 20. Nh2 {[%clk 0:02:46]} 20... Rab8 {[%clk
0:01:51.8]} 21. Qc1 {[%clk 0:02:27.9]} 21... Rb7 {[%clk 0:01:39.9]} 22. Ng4
{[%clk 0:02:22.8]} 22... h5 {[%clk 0:01:36.2]} 23. Nh2 {[%clk 0:02:20.5]} 23...
N6e7 {[%clk 0:01:34.1]} 24. Nf3 {[%clk 0:01:56.4]} 24... f6 {[%clk 0:01:32.4]}
25. Qa3 {[%clk 0:01:39.5]} 25... Rd8 {[%clk 0:01:24.8]} 26. Rad1 {[%clk
0:01:37.8]} 26... g6 {[%clk 0:01:01.8]} 27. dxe5 {[%clk 0:01:25.5]} 27... dxe5
{[%clk 0:00:57]} 28. Nd6 {[%clk 0:00:56.7]} 28... Rbb8 {[%clk 0:00:55.8]} 29.
Bxa7 {[%clk 0:00:56.9]} 29... Qxa7 {[%clk 0:00:55.4]} 30. Bb3 {[%clk 0:00:57.6]}
30... Bxb3 {[%clk 0:00:46.2]} 31. axb3 {[%clk 0:00:58.5]} 31... Kg7 {[%clk
0:00:36.4]} 32. Nc4 {[%clk 0:00:56.3]} 32... Rxd1 {[%clk 0:00:17]} 33. Rxd1
{[%clk 0:00:57.2]} 33... Ra8 {[%clk 0:00:06.6]} 34. Qd6 {[%clk 0:00:57]} 34...
a4 {[%clk 0:00:05.3]} 35. bxa4 {[%clk 0:00:49.2]} 35... Qxa4 {[%clk 0:00:05.4]}
36. Nb6 {[%clk 0:00:48.5]} 36... Qa6 {[%clk 0:00:02.2]} 37. Nxa8 {[%clk
0:00:47.5]} 37... Qxa8 {[%clk 0:00:02.9]} 38. Qc7 {[%clk 0:00:47]} 38... Qa4
{[%clk 0:00:02.3]} 39. Rd8 {[%clk 0:00:43.3]} 39... Kf7 {[%clk 0:00:01.5]} 40.
Rxg8 {[%clk 0:00:42.6]} 40... Kxg8 {[%clk 0:00:01.7]} 41. Qxe7 {[%clk
0:00:42.9]} 41... Qxe4 {[%clk 0:00:02.1]} 42. Qxf6 {[%clk 0:00:41.8]} 42... Qb1+
{[%clk 0:00:02.3]} 43. Kh2 {[%clk 0:00:42.3]} 43... Qa1 {[%clk 0:00:01.9]} 44.
Ng5 {[%clk 0:00:41.5]} 1-0

[Event "Early-Titled-Tuesday-Blitz-October-10-2023"]
[Site "Chess.com"]
[Date "2023.10.10"]
[Round "1"]
[White "bazar-wokzal"]
[Black "tarno17"]
[Result "1-0"]
[WhiteElo "2562"]
[BlackElo "2151"]
[TimeControl "180+1"]
[EndTime "8:07:08 PDT"]
[Termination "bazar-wokzal won by checkmate"]

1. e4 {[%clk 0:02:56.5]} 1... c5 {[%clk 0:02:59.9]} 2. c3 {[%clk 0:02:55.9]}
2... d5 {[%clk 0:02:58.3]} 3. exd5 {[%clk 0:02:55.9]} 3... Qxd5 {[%clk
0:02:59.2]} 4. d4 {[%clk 0:02:56.2]} 4... e6 {[%clk 0:02:59.4]} 5. a3 {[%clk
0:02:55.4]} 5... Nf6 {[%clk 0:02:57.3]} 6. Nf3 {[%clk 0:02:55.4]} 6... Be7
{[%clk 0:02:47.7]} 7. Be3 {[%clk 0:02:55]} 7... cxd4 {[%clk 0:02:45.4]} 8. cxd4
{[%clk 0:02:55.9]} 8... O-O {[%clk 0:02:41.1]} 9. Nc3 {[%clk 0:02:56.5]} 9...
Qd6 {[%clk 0:02:39.1]} 10. Qc2 {[%clk 0:02:56.8]} 10... a6 {[%clk 0:02:29.1]}
11. Bd3 {[%clk 0:02:55.4]} 11... Nbd7 {[%clk 0:02:08.2]} 12. O-O {[%clk
0:02:37.7]} 12... h6 {[%clk 0:01:59.5]} 13. Rac1 {[%clk 0:02:18.1]} 13... b5
{[%clk 0:01:51.7]} 14. Ne4 {[%clk 0:02:05.9]} 14... Nxe4 {[%clk 0:01:39.5]} 15.
Bxe4 {[%clk 0:02:05.8]} 15... Rb8 {[%clk 0:01:37.4]} 16. Qd2 {[%clk 0:02:05.4]}
16... Bf6 {[%clk 0:00:38.6]} 17. Bxh6 {[%clk 0:01:42.4]} 17... e5 {[%clk
0:00:25.1]} 18. dxe5 {[%clk 0:01:31.1]} 18... Bxe5 {[%clk 0:00:22.5]} 19. Qxd6
{[%clk 0:01:18.7]} 19... Bxd6 {[%clk 0:00:21.5]} 20. Be3 {[%clk 0:01:09]} 20...
Nf6 {[%clk 0:00:21.4]} 21. Bc6 {[%clk 0:01:04.3]} 21... Bg4 {[%clk 0:00:20.7]}
22. h3 {[%clk 0:01:01.7]} 22... Bh5 {[%clk 0:00:20.9]} 23. Nd4 {[%clk
0:00:52.8]} 23... b4 {[%clk 0:00:20.5]} 24. Nf5 {[%clk 0:00:42.1]} 24... Be5
{[%clk 0:00:20.6]} 25. axb4 {[%clk 0:00:35.1]} 25... Bxb2 {[%clk 0:00:20.5]} 26.
Rc2 {[%clk 0:00:29.5]} 26... Rxb4 {[%clk 0:00:20.3]} 27. Bc5 {[%clk 0:00:27]}
27... Ba3 {[%clk 0:00:09.5]} 28. Bxf8 {[%clk 0:00:18.3]} 28... Kxf8 {[%clk
0:00:10.4]} 29. Ra1 {[%clk 0:00:15.7]} 29... Rb3 {[%clk 0:00:06.3]} 30. Ba4
{[%clk 0:00:05.9]} 30... Rd3 {[%clk 0:00:05.7]} 31. Rc8+ {[%clk 0:00:05.2]}
31... Ne8 {[%clk 0:00:05.3]} 32. Rxe8# {[%clk 0:00:05.4]} 1-0

[Event "Early-Titled-Tuesday-Blitz-October-10-2023"]
[Site "Chess.com"]
[Date "2023.10.10"]
[Round "1"]
[White "Witaliss"]
[Black "vladislavkovalev"]
[Result "0-1"]
[WhiteElo "2481"]
[BlackElo "2883"]
[TimeControl "180+1"]
[EndTime "8:07:11 PDT"]
[Termination "vladislavkovalev won by resignation"]

1. d4 {[%clk 0:02:55]} 1... Nf6 {[%clk 0:03:00.4]} 2. Nf3 {[%clk 0:02:53.6]}
2... e6 {[%clk 0:03:00.9]} 3. g3 {[%clk 0:02:53.8]} 3... b5 {[%clk 0:02:58.8]}
4. Bg2 {[%clk 0:02:53.7]} 4... Bb7 {[%clk 0:02:59.4]} 5. O-O {[%clk 0:02:53.8]}
5... c5 {[%clk 0:02:58.7]} 6. c3 {[%clk 0:02:52.3]} 6... Be7 {[%clk 0:02:44.7]}
7. a4 {[%clk 0:02:51.3]} 7... b4 {[%clk 0:02:41.5]} 8. cxb4 {[%clk 0:02:48.9]}
8... cxb4 {[%clk 0:02:29.2]} 9. Nbd2 {[%clk 0:02:46.6]} 9... O-O {[%clk
0:02:26.8]} 10. Nb3 {[%clk 0:02:45.3]} 10... a5 {[%clk 0:02:22.1]} 11. Bf4
{[%clk 0:02:42.5]} 11... d5 {[%clk 0:02:03.9]} 12. Ne5 {[%clk 0:02:40.5]} 12...
Nbd7 {[%clk 0:02:00.9]} 13. Qd2 {[%clk 0:02:32.3]} 13... Nxe5 {[%clk 0:01:59.6]}
14. Bxe5 {[%clk 0:02:31.7]} 14... Nd7 {[%clk 0:01:51.5]} 15. Bf4 {[%clk
0:02:30.5]} 15... Nb6 {[%clk 0:01:50.9]} 16. Nc5 {[%clk 0:02:11.9]} 16... Bc6
{[%clk 0:01:29.3]} 17. b3 {[%clk 0:02:09.9]} 17... Nd7 {[%clk 0:01:24]} 18. Nd3
{[%clk 0:02:05.1]} 18... Qb6 {[%clk 0:01:23.9]} 19. Be3 {[%clk 0:02:01.7]} 19...
Rfc8 {[%clk 0:01:22.5]} 20. Rfc1 {[%clk 0:02:00.8]} 20... Bb7 {[%clk 0:01:20.9]}
21. Rxc8+ {[%clk 0:01:59.6]} 21... Rxc8 {[%clk 0:01:21.8]} 22. Rc1 {[%clk
0:01:59.3]} 22... Rc6 {[%clk 0:01:17]} 23. Rxc6 {[%clk 0:01:55.4]} 23... Qxc6
{[%clk 0:01:17.9]} 24. Qc1 {[%clk 0:01:52.5]} 24... Qxc1+ {[%clk 0:01:18.1]} 25.
Bxc1 {[%clk 0:01:52.3]} 25... Ba6 {[%clk 0:01:18.1]} 26. Kf1 {[%clk 0:01:45.7]}
26... Bxd3 {[%clk 0:01:17.2]} 27. exd3 {[%clk 0:01:45.5]} 27... Bf6 {[%clk
0:01:08.5]} 28. Be3 {[%clk 0:01:44.9]} 28... Nb8 {[%clk 0:01:09.2]} 29. Ke2
{[%clk 0:01:39.3]} 29... Nc6 {[%clk 0:01:09.8]} 30. h4 {[%clk 0:01:35.3]} 30...
h5 {[%clk 0:01:08.9]} 31. Bf3 {[%clk 0:01:29.9]} 31... g6 {[%clk 0:01:09.5]} 32.
Kd2 {[%clk 0:01:29.6]} 32... Kf8 {[%clk 0:01:09.5]} 33. Bd1 {[%clk 0:01:27.2]}
33... Bxd4 {[%clk 0:01:06.4]} 34. g4 {[%clk 0:01:23.2]} 34... hxg4 {[%clk
0:01:03.8]} 35. Bxg4 {[%clk 0:01:23.1]} 35... Bxe3+ {[%clk 0:01:00.2]} 36. Kxe3
{[%clk 0:01:20.1]} 36... Ke7 {[%clk 0:00:58.8]} 37. h5 {[%clk 0:01:19.2]} 37...
gxh5 {[%clk 0:00:59.7]} 38. Bxh5 {[%clk 0:01:19.4]} 38... e5 {[%clk 0:01:00.3]}
39. f4 {[%clk 0:01:14.1]} 39... Kf6 {[%clk 0:00:52]} 40. fxe5+ {[%clk
0:01:11.9]} 40... Kxe5 {[%clk 0:00:52.9]} 41. Bxf7 {[%clk 0:00:58.6]} 41... Nd4
{[%clk 0:00:53.8]} 42. Kd2 {[%clk 0:00:45.5]} 42... Nxb3+ {[%clk 0:00:54]} 43.
Kc2 {[%clk 0:00:45.9]} 43... Nc5 {[%clk 0:00:50.8]} 44. Be8 {[%clk 0:00:44.2]}
44... Kd4 {[%clk 0:00:51.5]} 45. Bb5 {[%clk 0:00:43]} 45... Ke3 {[%clk
0:00:52.2]} 46. Bc6 {[%clk 0:00:39.4]} 46... d4 {[%clk 0:00:51.6]} 47. Bb5
{[%clk 0:00:39.3]} 47... Ke2 {[%clk 0:00:27.1]} 48. Be8 {[%clk 0:00:37]} 48...
Nxd3 {[%clk 0:00:24.9]} 49. Bb5 {[%clk 0:00:36.3]} 49... Ke3 {[%clk 0:00:25.6]}
50. Bxd3 {[%clk 0:00:35.2]} 50... b3+ {[%clk 0:00:25.8]} 51. Kxb3 {[%clk
0:00:35]} 51... Kxd3 {[%clk 0:00:26.7]} 0-1

[Event "Early-Titled-Tuesday-Blitz-October-10-2023"]
[Site "Chess.com"]
[Date "2023.10.10"]
[Round "1"]
[White "Alphafischer2019"]
[Black "Artemiki"]
[Result "1-0"]
[WhiteElo "2594"]
[BlackElo "2260"]
[TimeControl "180+1"]
[EndTime "8:07:14 PDT"]
[Termination "Alphafischer2019 won on time"]

1. Nf3 {[%clk 0:02:38.9]} 1... Nf6 {[%clk 0:02:59]} 2. g3 {[%clk 0:02:39]} 2...
d5 {[%clk 0:02:58.3]} 3. Bg2 {[%clk 0:02:38.9]} 3... e6 {[%clk 0:02:58.9]} 4.
O-O {[%clk 0:02:39.3]} 4... Be7 {[%clk 0:02:59.6]} 5. d3 {[%clk 0:02:39.5]} 5...
O-O {[%clk 0:03:00.1]} 6. Nbd2 {[%clk 0:02:40]} 6... c5 {[%clk 0:03:00.5]} 7. e4
{[%clk 0:02:40.3]} 7... Nc6 {[%clk 0:03:01.1]} 8. Re1 {[%clk 0:02:40.9]} 8... b5
{[%clk 0:03:00.2]} 9. exd5 {[%clk 0:02:41.1]} 9... exd5 {[%clk 0:02:56.9]} 10.
d4 {[%clk 0:02:41.7]} 10... c4 {[%clk 0:02:52.9]} 11. Ne5 {[%clk 0:02:42.2]}
11... Bb7 {[%clk 0:02:41.5]} 12. Nxc6 {[%clk 0:02:40.5]} 12... Bxc6 {[%clk
0:02:41.3]} 13. Nf3 {[%clk 0:02:41.4]} 13... b4 {[%clk 0:02:36.2]} 14. Ne5
{[%clk 0:02:41.7]} 14... Bb7 {[%clk 0:02:36.4]} 15. c3 {[%clk 0:02:41.2]} 15...
a5 {[%clk 0:02:36.3]} 16. Bf4 {[%clk 0:02:40.8]} 16... Re8 {[%clk 0:02:34.2]}
17. Nxc4 {[%clk 0:02:37.3]} 17... bxc3 {[%clk 0:02:23.4]} 18. bxc3 {[%clk
0:02:38.2]} 18... Rc8 {[%clk 0:02:19.6]} 19. Ne5 {[%clk 0:02:25]} 19... Rxc3
{[%clk 0:02:16.2]} 20. Qb1 {[%clk 0:02:23.6]} 20... Ba6 {[%clk 0:01:55.9]} 21.
Rc1 {[%clk 0:02:16.4]} 21... Qc8 {[%clk 0:01:25.6]} 22. Qb2 {[%clk 0:02:11.5]}
22... Rxc1+ {[%clk 0:00:54.6]} 23. Rxc1 {[%clk 0:02:12.4]} 23... Qe6 {[%clk
0:00:54.3]} 24. h3 {[%clk 0:02:07.7]} 24... Rc8 {[%clk 0:00:46.7]} 25. Rxc8+
{[%clk 0:01:55.7]} 25... Qxc8 {[%clk 0:00:45.3]} 26. Qb6 {[%clk 0:01:53.2]}
26... Bb4 {[%clk 0:00:41.8]} 27. Nc6 {[%clk 0:01:50.3]} 27... Nd7 {[%clk
0:00:30.5]} 28. Qc7 {[%clk 0:01:16.4]} 28... Qxc7 {[%clk 0:00:30.5]} 29. Bxc7
{[%clk 0:01:17.3]} 29... Bc4 {[%clk 0:00:30.7]} 30. a4 {[%clk 0:00:31.5]} 30...
Ba2 {[%clk 0:00:05.5]} 31. Nxa5 {[%clk 0:00:21.9]} 31... Nf8 {[%clk 0:00:04.1]}
32. Nc6 {[%clk 0:00:21.5]} 32... Ne6 {[%clk 0:00:02.4]} 33. Nxb4 {[%clk
0:00:20.3]} 33... Nxc7 {[%clk 0:00:01.2]} 34. a5 {[%clk 0:00:20.9]} 34... Bc4
{[%clk 0:00:01]} 35. f4 {[%clk 0:00:19.6]} 1-0

[Event "Early-Titled-Tuesday-Blitz-October-10-2023"]
[Site "Chess.com"]
[Date "2023.10.10"]
[Round "1"]
[White "ExcitingTrap"]
[Black "Drags95"]
[Result "0-1"]
[WhiteElo "2475"]
[BlackElo "2863"]
[TimeControl "180+1"]
[EndTime "8:07:15 PDT"]
[Termination "Drags95 won on time"]

1. e4 {[%clk 0:02:58.3]} 1... c5 {[%clk 0:02:59.4]} 2. Nf3 {[%clk 0:02:57.9]}
2... e6 {[%clk 0:03:00.1]} 3. d4 {[%clk 0:02:58.2]} 3... cxd4 {[%clk 0:03:01]}
4. Nxd4 {[%clk 0:02:59.1]} 4... Nc6 {[%clk 0:03:01.9]} 5. Nc3 {[%clk 0:02:55.2]}
5... Qc7 {[%clk 0:03:02.2]} 6. Be3 {[%clk 0:02:54.3]} 6... a6 {[%clk 0:03:01.9]}
7. a3 {[%clk 0:02:54]} 7... b5 {[%clk 0:02:55]} 8. Nxc6 {[%clk 0:02:39]} 8...
Qxc6 {[%clk 0:02:54.4]} 9. Bd3 {[%clk 0:02:33.7]} 9... Bb7 {[%clk 0:02:53.9]}
10. Qd2 {[%clk 0:02:32.2]} 10... Nf6 {[%clk 0:02:51.9]} 11. f3 {[%clk
0:02:21.9]} 11... b4 {[%clk 0:02:45.4]} 12. axb4 {[%clk 0:02:17.3]} 12... Bxb4
{[%clk 0:02:46.3]} 13. O-O {[%clk 0:02:15.9]} 13... d5 {[%clk 0:02:41.3]} 14.
exd5 {[%clk 0:02:00.3]} 14... Nxd5 {[%clk 0:02:41.5]} 15. Bd4 {[%clk 0:02:00.4]}
15... Bc5 {[%clk 0:02:18.9]} 16. Be4 {[%clk 0:01:58.2]} 16... Qb6 {[%clk
0:01:59.9]} 17. Bxc5 {[%clk 0:01:49.5]} 17... Qxc5+ {[%clk 0:02:00.8]} 18. Kh1
{[%clk 0:01:49.8]} 18... O-O {[%clk 0:01:48.4]} 19. Nxd5 {[%clk 0:01:26.2]}
19... exd5 {[%clk 0:01:47.2]} 20. Ra5 {[%clk 0:01:25.5]} 20... Qb6 {[%clk
0:01:41.5]} 21. Bxd5 {[%clk 0:01:21.2]} 21... Qxb2 {[%clk 0:01:40.8]} 22. Bb3
{[%clk 0:01:06.1]} 22... Rad8 {[%clk 0:01:32.1]} 23. Qb4 {[%clk 0:00:53.3]}
23... Bd5 {[%clk 0:01:24.5]} 24. Rxa6 {[%clk 0:00:24.4]} 24... Rb8 {[%clk
0:01:22.9]} 25. Rb6 {[%clk 0:00:22]} 25... Rxb6 {[%clk 0:01:17.7]} 26. Qxb6
{[%clk 0:00:22.9]} 26... Bc4 {[%clk 0:01:12.6]} 27. Qb4 {[%clk 0:00:17]} 27...
Bxb3 {[%clk 0:01:00.6]} 28. Qxb3 {[%clk 0:00:16.5]} 28... Qd4 {[%clk 0:01:00]}
29. Qd3 {[%clk 0:00:14.8]} 29... Qc5 {[%clk 0:00:59.5]} 30. c4 {[%clk
0:00:13.8]} 30... g6 {[%clk 0:00:59.9]} 31. Rd1 {[%clk 0:00:13.1]} 31... Rc8
{[%clk 0:00:59.2]} 32. Rc1 {[%clk 0:00:12.3]} 32... h5 {[%clk 0:00:56.8]} 33. h3
{[%clk 0:00:12.4]} 33... Qe5 {[%clk 0:00:54.6]} 34. Qc3 {[%clk 0:00:09.2]} 34...
Qf4 {[%clk 0:00:54.6]} 35. Rc2 {[%clk 0:00:08.3]} 35... Rc5 {[%clk 0:00:51.6]}
36. Qd3 {[%clk 0:00:08]} 36... Kh7 {[%clk 0:00:50.1]} 37. Qc3 {[%clk 0:00:04.9]}
37... h4 {[%clk 0:00:49.5]} 38. Qd3 {[%clk 0:00:04.4]} 38... Re5 {[%clk
0:00:49.6]} 39. Qd1 {[%clk 0:00:03.4]} 39... Qg3 {[%clk 0:00:42]} 40. Re2 {[%clk
0:00:03.4]} 40... Rc5 {[%clk 0:00:40.3]} 41. Qd3 {[%clk 0:00:03.1]} 41... Ra5
{[%clk 0:00:38.5]} 42. Qd2 {[%clk 0:00:02.7]} 42... Ra1+ {[%clk 0:00:37.7]} 0-1

[Event "Early-Titled-Tuesday-Blitz-October-10-2023"]
[Site "Chess.com"]
[Date "2023.10.10"]
[Round "1"]
[White "Better_Chess_Faster"]
[Black "cande_francisco"]
[Result "0-1"]
[WhiteElo "2071"]
[BlackElo "2547"]
[TimeControl "180+1"]
[EndTime "8:07:19 PDT"]
[Termination "cande_francisco won on time"]

1. e4 {[%clk 0:02:56.9]} 1... c5 {[%clk 0:03:00]} 2. Nf3 {[%clk 0:02:56.1]} 2...
g6 {[%clk 0:03:00.4]} 3. d4 {[%clk 0:02:55.6]} 3... cxd4 {[%clk 0:03:01.3]} 4.
Nxd4 {[%clk 0:02:55.5]} 4... Bg7 {[%clk 0:03:01.6]} 5. Nc3 {[%clk 0:02:55.4]}
5... Nc6 {[%clk 0:03:02.1]} 6. Be3 {[%clk 0:02:55.2]} 6... Nf6 {[%clk
0:03:02.7]} 7. f3 {[%clk 0:02:55]} 7... O-O {[%clk 0:03:02.8]} 8. Qd2 {[%clk
0:02:55.5]} 8... d5 {[%clk 0:03:02.5]} 9. exd5 {[%clk 0:02:47.9]} 9... Nxd5
{[%clk 0:03:02.9]} 10. Nxd5 {[%clk 0:02:32.6]} 10... Qxd5 {[%clk 0:02:55.8]} 11.
Nxc6 {[%clk 0:02:25.8]} 11... Qxc6 {[%clk 0:02:55.3]} 12. O-O-O {[%clk
0:02:11.8]} 12... Bf5 {[%clk 0:02:29.7]} 13. Bd3 {[%clk 0:02:08.5]} 13... Rfd8
{[%clk 0:02:26.3]} 14. Kb1 {[%clk 0:02:04]} 14... Rac8 {[%clk 0:02:12.4]} 15.
Qf2 {[%clk 0:01:53.9]} 15... Qf6 {[%clk 0:01:56.7]} 16. Bc1 {[%clk 0:01:34.2]}
16... Bxd3 {[%clk 0:01:56.5]} 17. Rxd3 {[%clk 0:01:27.6]} 17... Rxd3 {[%clk
0:01:56.7]} 18. cxd3 {[%clk 0:01:27.5]} 18... Qa6 {[%clk 0:01:53.1]} 19. Rd1
{[%clk 0:01:20.7]} 19... Qa4 {[%clk 0:01:50.4]} 20. Qd2 {[%clk 0:01:15.1]} 20...
Qc6 {[%clk 0:01:30.6]} 21. d4 {[%clk 0:01:13.4]} 21... Bh6 {[%clk 0:01:23.4]}
22. Qc3 {[%clk 0:00:50]} 22... Qd7 {[%clk 0:01:17.2]} 23. Qd3 {[%clk 0:00:42.5]}
23... Rxc1+ {[%clk 0:01:00.5]} 24. Rxc1 {[%clk 0:00:42.2]} 24... Bxc1 {[%clk
0:01:01.4]} 25. Kxc1 {[%clk 0:00:42.1]} 25... Qc7+ {[%clk 0:01:01.5]} 26. Qc3
{[%clk 0:00:35.7]} 26... Qxh2 {[%clk 0:01:02.1]} 27. Qc8+ {[%clk 0:00:34.8]}
27... Kg7 {[%clk 0:01:02.7]} 28. Qxb7 {[%clk 0:00:33.2]} 28... Qg1+ {[%clk
0:01:02.8]} 29. Kc2 {[%clk 0:00:30.4]} 29... Qxg2+ {[%clk 0:00:57.5]} 30. Kc3
{[%clk 0:00:29.7]} 30... a5 {[%clk 0:00:48.6]} 31. Qxe7 {[%clk 0:00:22.7]} 31...
Qxf3+ {[%clk 0:00:48.4]} 32. Kc4 {[%clk 0:00:19.6]} 32... Qf1+ {[%clk
0:00:44.9]} 33. Kc5 {[%clk 0:00:18]} 33... Qc1+ {[%clk 0:00:43.2]} 34. Kb6
{[%clk 0:00:16.9]} 34... Qxb2+ {[%clk 0:00:42.9]} 35. Ka6 {[%clk 0:00:16.8]}
35... Qxd4 {[%clk 0:00:42.5]} 36. Kxa5 {[%clk 0:00:14.8]} 36... h5 {[%clk
0:00:41.4]} 37. Qe1 {[%clk 0:00:11.6]} 37... h4 {[%clk 0:00:39.7]} 38. a4 {[%clk
0:00:09.3]} 38... h3 {[%clk 0:00:37.2]} 39. Qh1 {[%clk 0:00:07.3]} 39... Qe5+
{[%clk 0:00:26.1]} 40. Kb6 {[%clk 0:00:04.8]} 40... h2 {[%clk 0:00:26.4]} 41. a5
{[%clk 0:00:03.6]} 41... Qe3+ {[%clk 0:00:26.5]} 42. Kb7 {[%clk 0:00:02.7]}
42... Qg1 {[%clk 0:00:27.2]} 43. Qe4 {[%clk 0:00:01.3]} 43... h1=Q {[%clk
0:00:24.8]} 44. Qxh1 {[%clk 0:00:01.2]} 44... Qxh1+ {[%clk 0:00:25.7]} 0-1